bitfinex-derivatives/quotes_ETHF0:USTF0_20250923
["timestamp","ask_amount","ask_price","bid_price","bid_amount"]
[1758637304102,0.7423,4185.6,4185.5,0.63304]
[1758637304296,0.7423,4185.6,4185.5,1.15954]
[1758637304601,1.17204,4185.6,4185.5,0.63304]
[1758637304799,0.7423,4185.6,4185.5,0.63304]
[1758637305199,0.7423,4185.6,4185.5,1.15954]
[1758637305800,0.7423,4186.0,4185.9,1.15951]
[1758637306300,0.1347,4186.5,4186.4,0.3219]
[1758637306301,0.3269,4186.5,4186.4,0.3219]
[1758637306605,0.3269,4186.3,4186.2,0.75157]
[1758637307301,0.3269,4186.3,4185.0,2.27132]
[1758637307302,0.1347,4186.0,4183.5,2.26058146]
[1758637307504,0.42989,4184.2,4183.5,0.1223]
[1758637307705,0.3269,4184.4,4183.4,0.3219]
[1758637307897,0.75682,4183.9,4183.1,0.56092]
[1758637308201,0.3269,4185.1,4184.0,0.4299]
[1758637308396,0.3269,4185.1,4184.3,0.42987]
[1758637308596,0.42982,4184.9,4184.2,0.3219]
[1758637308794,0.3269,4185.1,4184.2,0.75178]
[1758637308997,0.3269,4185.1,4184.3,0.3219]
[1758637308998,0.42986,4184.5,4184.3,0.3219]
[1758637309198,0.75676,4184.5,4184.3,0.3219]
[1758637309397,0.42986,4184.5,4184.0,0.1223]
[1758637309595,40.8,4185.4,4184.6,0.3219]
[1758637309596,0.42981,4185.0,4184.6,0.3219]
[1758637309807,0.3269,4185.3,4184.6,0.3219]
[1758637310007,0.75668,4185.3,4184.9,0.75171]
[1758637310207,0.3269,4185.7,4184.7,0.3219]
[1758637310407,0.42978,4185.3,4185.0,0.3219]
[1758637310615,0.3269,4185.7,4185.1,0.3219]
[1758637310811,0.42976,4185.5,4185.1,0.3219]
[1758637311109,0.42975,4185.6,4185.3,0.3219]
[1758637311313,1.07431,4185.8,4184.9,0.3219]
[1758637311515,0.3269,4185.3,4185.2,0.3219]
[1758637311713,0.42974,4185.7,4185.5,0.3219]
[1758637311914,0.42974,4185.7,4185.6,0.3219]
[1758637312109,0.3269,4186.0,4185.6,0.3219]
[1758637312417,0.3269,4186.0,4185.9,0.3219]
[1758637312616,0.75657,4186.3,4186.0,0.42969]
[1758637312812,0.3269,4186.3,4186.1,0.3219]
[1758637313115,0.42966,4186.4,4185.3,0.42977]
[1758637313116,0.3168,4186.4,4185.3,0.42977]
[1758637313314,1.07429,4185.9,4184.5,0.1223]
[1758637313617,0.3168,4185.1,4184.9,0.74691]
[1758637313817,0.3168,4185.4,4185.2,0.74688]
[1758637314017,0.74656,4185.4,4185.2,0.3171]
[1758637314316,0.3168,4185.3,4185.2,0.3171]
[1758637315719,0.3168,4185.5,4185.4,0.42976]
[1758637315915,0.42976,4185.4,4185.3,0.3171]
[1758637316118,0.42975,4185.6,4185.3,0.74687]
[1758637316317,0.3168,4185.5,4185.4,0.42976]
[1758637316516,0.42967,4186.3,4185.9,0.42971]
[1758637316716,0.42968,4186.2,4185.5,1.07436]
[1758637316915,0.3168,4186.4,4185.4,0.3171]
[1758637317115,0.3168,4186.4,4185.5,0.125]
[1758637317317,0.3168,4186.4,4185.6,0.3171]
[1758637317512,0.42969,4186.1,4185.6,0.3171]
[1758637317717,0.1261,4187.5,4185.8,1.07431]
[1758637317922,0.1261,4187.5,4186.6,0.42964]
[1758637317923,0.3168,4186.8,4186.6,0.42964]
[1758637318117,0.42959,4187.1,4186.8,0.42962]
[1758637318415,0.85004134,4187.0,4186.1,0.3171]
[1758637318620,0.3168,4186.7,4186.4,0.42966]
[1758637318823,0.42963,4186.7,4186.4,0.42966]
[1758637319017,0.3168,4186.5,4186.4,0.42966]
[1758637319519,0.3168,4187.4,4186.9,0.42961]
[1758637319827,0.3168,4187.0,4186.9,0.74671]
[1758637320318,0.1261,4187.5,4186.5,1.19911]
[1758637320319,0.3168,4187.4,4186.5,1.19911]
[1758637320514,40.8,4187.9,4186.5,1.19911]
[1758637320515,0.1261,4188.0,4187.2,1.39103]
[1758637320721,0.3168,4187.8,4187.7,0.42952]
[1758637320918,0.85018975,4187.8,4187.7,0.42952]
[1758637321124,0.3168,4188.2,4188.1,0.42948]
[1758637321419,0.5336131,4188.2,4187.0,0.125]
[1758637321625,0.42952,4187.8,4187.5,0.42954]
[1758637321925,0.3168,4188.3,4188.0,0.42949]
[1758637322127,1.19959,4189.0,4188.1,0.3171]
[1758637322128,0.53339551,4188.2,4188.1,0.3171]
[1758637322323,0.3168,4188.5,4187.8,0.3171]
[1758637322518,0.42946,4188.4,4187.5,0.125]
[1758637322718,0.3168,4188.4,4187.6,0.74663]
[1758637323022,0.3168,4187.9,4187.8,0.42951]
[1758637323224,0.3168,4187.9,4187.8,0.74661]
[1758637323426,0.3168,4188.3,4188.1,0.42948]
[1758637323724,0.3168,4188.4,4188.2,0.42947]
[1758637323923,0.3168,4188.2,4187.9,0.4295]
[1758637324124,0.74628,4188.2,4187.6,0.3171]
[1758637324422,0.3168,4188.1,4188.0,0.42949]
[1758637324624,0.7463,4188.0,4187.8,0.3171]
[1758637324826,0.74631,4187.9,4187.3,0.25]
[1758637325120,0.3168,4187.8,4187.5,0.42954]
[1758637325326,0.42951,4187.9,4187.3,0.3171]
[1758637325515,1.0737,4188.2,4187.5,0.3171]
[1758637325719,1.0737,4188.2,4187.0,0.125]
[1758637325720,0.3168,4187.2,4187.1,0.3171]
[1758637326524,0.1261,4188.0,4187.1,0.3171]
[1758637326525,0.3168,4187.9,4187.1,0.3171]
[1758637326712,0.42952,4187.8,4187.1,0.3171]
[1758637326915,0.1261,4188.0,4187.7,0.42952]
[1758637327122,0.1261,4188.0,4187.6,0.3171]
[1758637327323,0.3168,4188.1,4187.9,0.4295]
[1758637327524,0.3168,4188.9,4187.8,0.3171]
[1758637327721,0.42942,4188.7,4187.8,1.3909]
[1758637327922,0.3168,4188.9,4188.1,0.3171]
[1758637328119,0.42943,4188.7,4188.5,0.74654]
[1758637328322,0.1261,4189.0,4188.0,0.125]
[1758637328323,0.42944,4188.6,4188.0,0.125]
[1758637328519,1.19961,4189.0,4188.1,0.3171]
[1758637328723,0.3168,4188.2,4188.0,0.42949]
[1758637328926,0.42943,4188.7,4188.5,0.42944]
[1758637329121,0.42943,4188.7,4187.9,1.07376]
[1758637329122,0.1261,4189.0,4188.3,0.42946]
[1758637329332,0.3168,4188.5,4188.4,0.3171]
[1758637329628,0.42945,4188.5,4188.3,0.3171]
[1758637329824,0.42945,4188.5,4187.6,1.07385]
[1758637329825,0.42951,4187.9,4187.6,0.3171]
[1758637330129,0.3168,4187.7,4187.5,0.42954]
[1758637330324,0.3168,4188.3,4187.0,0.125]
[1758637330626,0.1261,4188.5,4187.0,0.125]
[1758637330627,1.07347,4189.1,4187.8,0.42951]
[1758637330832,0.3168,4188.3,4187.1,0.4601]
[1758637331126,0.3168,4187.9,4187.1,0.3171]
[1758637331328,0.318,4187.3,4187.1,0.3171]
[1758637331525,0.318,4187.3,4186.6,0.3085]
[1758637331726,0.74759,4187.2,4186.9,0.4296]
[1758637332032,0.318,4187.2,4187.1,0.3085]
[1758637332426,0.42958,4187.2,4186.9,0.4296]
[1758637332623,0.318,4186.9,4186.1,0.3085]
[1758637332827,0.318,4187.4,4186.5,0.4429]
[1758637333027,0.318,4187.4,4186.8,0.3085]
[1758637333326,0.42956,4187.4,4187.1,0.42958]
[1758637333526,0.42956,4187.4,4187.2,0.42957]
[1758637333728,40.8,4187.7,4187.1,0.3085]
[1758637333729,1.19987,4188.0,4187.1,0.3085]
[1758637333925,0.318,4187.8,4187.1,0.3085]
[1758637334321,0.318,4188.0,4187.8,0.42951]
[1758637334527,0.318,4188.0,4187.9,0.3085]
[1758637334930,0.1261,4188.5,4187.9,0.3085]
[1758637334931,0.42946,4188.4,4187.9,0.738]
[1758637335228,0.1261,4188.5,4187.7,0.42952]
[1758637335922,0.1261,4188.5,4187.5,0.3085]
[1758637335923,0.42953,4187.7,4187.5,0.3085]
[1758637336123,0.318,4187.6,4187.5,0.42955]
[1758637336332,0.318,4187.6,4187.5,0.73805]
[1758637336525,0.318,4187.6,4186.5,1.20852]
[1758637336526,0.42961,4186.9,4186.6,0.3085]
[1758637336730,0.318,4186.8,4186.7,0.42963]
[1758637336927,0.318,4186.9,4186.8,0.73811]
[1758637337423,0.42958,4187.2,4187.0,0.7381]
[1758637337624,0.42962,4186.8,4186.6,0.3085]
[1758637337821,0.318,4186.7,4186.4,0.42966]
[1758637338019,0.42961,4186.9,4186.7,0.42962]
[1758637338229,0.318,4186.8,4186.7,0.42962]
[1758637338530,0.318,4186.8,4186.2,0.3085]
[1758637338731,0.318,4186.4,4186.2,0.3085]
[1758637338925,0.318,4186.4,4186.3,0.73817]
[1758637339531,0.318,4186.9,4186.3,0.3085]
[1758637339834,0.74764,4186.6,4186.4,0.73816]
[1758637340129,0.318,4186.2,4186.0,0.3085]
[1758637340329,0.318,4186.4,4185.6,0.3085]
[1758637340528,1.07421,4186.2,4185.2,0.42978]
[1758637340732,1.07421,4186.2,4185.1,0.3085]
[1758637340733,0.318,4185.9,4185.1,0.3085]
[1758637340922,0.74776,4185.5,4185.3,0.42977]
[1758637341121,0.74776,4185.5,4184.7,1.31352]
[1758637341323,0.74776,4185.5,4184.8,0.3085]
[1758637341630,0.1264,4186.0,4184.8,0.3085]
[1758637341824,0.318,4185.9,4184.8,0.3085]
[1758637342025,0.42975,4185.6,4185.3,0.42977]
[1758637342221,0.318,4185.5,4185.3,0.73827]
[1758637342626,0.42975,4185.5,4185.3,0.3085]
[1758637342834,0.318,4185.6,4184.8,0.3085]
[1758637343022,0.3251,4185.4,4184.9,0.42981]
[1758637343227,0.3251,4185.1,4184.9,0.42981]
[1758637343529,0.3251,4185.4,4185.2,0.42977]
[1758637343729,0.3251,4185.4,4185.2,0.74597]
[1758637344128,0.3251,4185.9,4185.2,0.74597]
[1758637344330,0.3251,4185.8,4185.1,0.3162]
[1758637344630,0.3251,4186.3,4185.9,0.4297]
[1758637344830,0.42967,4186.3,4185.9,0.42971]
[1758637345024,0.1264,4186.5,4185.5,1.20417]
[1758637345333,0.3251,4186.4,4185.2,0.3162]
[1758637345534,0.75481,4185.9,4185.2,0.3162]
[1758637345931,1.20016,4186.0,4185.2,0.3162]
[1758637346135,1.20016,4186.0,4184.7,0.3162]
[1758637346136,0.3251,4185.3,4184.7,0.3162]
[1758637346335,0.3251,4184.8,4184.7,0.42982]
[1758637346527,0.3251,4184.8,4184.6,0.42984]
[1758637346728,0.3251,4184.8,4184.7,0.3162]
[1758637346930,0.42978,4185.3,4184.0,0.1344]
[1758637346931,1.07444,4185.3,4184.4,0.42986]
[1758637347134,0.3251,4184.7,4184.6,0.42984]
[1758637347535,0.3251,4184.7,4184.6,0.74604]
[1758637348137,0.3251,4185.8,4184.7,1.07459]
[1758637348345,0.3251,4185.8,4185.6,0.74594]
[1758637348346,0.3251,4185.7,4185.6,0.74594]
[1758637348540,0.55566,4185.5,4184.6,0.3162]
[1758637348734,0.3251,4185.4,4185.3,0.42977]
[1758637348930,0.3251,4185.4,4185.3,0.74597]
[1758637349636,0.3251,4186.0,4185.1,1.39069]
[1758637349836,0.1259,4186.0,4185.0,0.36872]
[1758637350031,0.3251,4185.9,4185.0,0.1298]
[1758637350231,0.1259,4186.0,4185.3,0.42977]
[1758637350232,0.42973,4185.7,4185.3,0.42977]
[1758637350432,0.3251,4185.5,4185.4,0.42976]
[1758637350735,0.3251,4185.5,4185.2,0.42978]
[1758637350736,0.3251,4185.3,4185.2,0.42978]
[1758637351236,0.3251,4185.3,4185.2,0.74598]
[1758637351634,0.3251,4185.3,4185.2,0.42978]
[1758637352336,0.3251,4185.3,4185.2,0.74598]
[1758637353141,0.1259,4186.0,4183.5,0.31653878]
[1758637353142,0.3251,4185.8,4185.7,0.3162]
[1758637353435,0.3251,4185.8,4185.6,0.42973]
[1758637353436,0.1259,4186.0,4185.6,0.42974]
[1758637353640,0.3251,4185.8,4185.7,0.42973]
[1758637353842,0.4297,4186.1,4185.7,0.42973]
[1758637353843,0.3251,4186.1,4186.0,0.4297]
[1758637354044,0.1259,4186.0,4185.1,1.39067]
[1758637354338,0.3251,4185.9,4185.8,0.42972]
[1758637354538,0.3251,4186.4,4186.0,0.4297]
[1758637354738,0.3251,4186.4,4185.2,1.07446]
[1758637354739,0.3251,4185.8,4185.2,1.07446]
[1758637354941,0.3251,4185.8,4185.1,0.3162]
[1758637355240,0.3251,4185.6,4185.5,0.42975]
[1758637355637,0.3251,4185.4,4184.9,1.39072]
[1758637355940,0.3251,4185.3,4184.9,0.3162]
[1758637356142,0.1259,4185.5,4184.6,1.07462]
[1758637356333,0.75487,4185.3,4185.2,0.42978]
[1758637356534,0.3251,4185.4,4184.5,0.3162]
[1758637356734,0.42984,4184.7,4184.5,0.42985]
[1758637356940,0.3251,4184.6,4184.5,0.42985]
[1758637357340,0.3251,4184.6,4183.5,0.446]
[1758637357341,0.4299,4184.1,4183.5,0.446]
[1758637357541,0.75497,4184.4,4183.5,0.446]
[1758637357735,0.3251,4184.4,4183.6,0.3162]
[1758637358038,0.3251,4184.2,4184.1,0.3162]
[1758637358241,0.3251,4184.2,4183.8,0.42992]
[1758637358436,0.3251,4184.2,4184.0,0.3162]
[1758637358639,0.3251,4184.4,4184.0,0.7461]
[1758637358947,41.1759,4185.0,4184.3,0.42987]
[1758637359246,0.42987,4184.4,4184.2,0.42988]
[1758637359441,0.3251,4184.3,4184.2,0.42988]
[1758637359644,0.3251,4184.8,4184.5,0.42985]
[1758637359840,0.3251,4184.8,4184.3,0.3162]
[1758637360045,40.9259,4185.0,4184.6,0.42984]
[1758637360046,0.3251,4184.7,4184.6,0.42984]
[1758637360347,0.3251,4184.9,4184.8,0.74602]
[1758637361139,0.3251,4184.9,4184.8,0.42982]
[1758637361431,0.3251,4184.9,4184.8,0.74602]
[1758637361945,0.3251,4184.9,4184.1,1.07473]
[1758637361946,0.42982,4184.8,4184.7,0.42983]
[1758637362146,0.75492,4184.8,4184.7,0.42983]
[1758637362541,0.3251,4184.8,4184.7,0.42983]
[1758637363347,0.3251,4184.8,4184.7,0.74603]
[1758637363641,0.3251,4185.4,4185.3,0.3162]
[1758637363847,0.3251,4185.7,4185.3,0.3162]
[1758637364048,3.07238477,4186.0,4185.8,0.74592]
[1758637364250,0.3251,4185.9,4185.8,0.74592]
[1758637364548,0.3251,4185.9,4185.8,0.42972]
[1758637364846,0.75481,4185.9,4185.8,0.42972]
[1758637365950,0.3251,4185.9,4185.8,0.42972]
[1758637366147,0.3251,4185.9,4185.8,0.74592]
[1758637366539,0.75478,4186.3,4186.2,0.42967]
[1758637366746,0.75478,4186.3,4186.2,0.74587]
[1758637366747,0.86008056,4186.3,4186.2,0.74587]
[1758637366939,0.42964,4186.6,4186.5,0.42964]
[1758637367135,0.42968,4186.3,4185.6,0.3162]
[1758637367341,0.3251,4186.2,4186.1,0.42969]
[1758637367844,0.3251,4186.4,4185.1,0.3162]
[1758637368148,0.3251,4185.9,4185.7,0.42973]
[1758637368338,0.3251,4185.9,4185.3,1.07444]
[1758637368538,0.3251,4185.9,4185.4,0.3162]
[1758637368739,0.5556,4186.0,4185.3,1.07444]
[1758637368946,0.451,4186.0,4185.9,0.42971]
[1758637369746,0.3251,4186.4,4185.8,0.3162]
[1758637369948,0.1259,4186.5,4185.5,0.446]
[1758637369949,0.3251,4186.2,4185.5,0.446]
[1758637370249,0.96543564,4186.1,4185.9,0.42971]
[1758637370448,0.75479,4186.1,4186.0,0.3162]
[1758637370645,0.7548,4186.0,4185.9,0.74591]
[1758637371049,0.3251,4186.4,4186.2,0.3162]
[1758637371348,0.86115737,4186.3,4186.2,0.3162]
[1758637371544,0.42968,4186.2,4186.1,0.42969]
[1758637371748,0.3251,4186.1,4185.8,0.42972]
[1758637371953,0.7548,4186.0,4185.9,0.42971]
[1758637372244,0.3251,4186.0,4185.9,0.74591]
[1758637373153,1.07421,4186.2,4185.6,0.73714]
[1758637373348,0.3211,4185.8,4185.2,1.38186]
[1758637373545,0.3211,4185.8,4185.7,0.42973]
[1758637374051,0.1347,4186.0,4185.3,1.07444]
[1758637374052,0.3211,4186.0,4185.9,0.73711]
[1758637375449,0.3211,4186.0,4185.9,0.42971]
[1758637375651,0.3211,4186.0,4185.3,1.07444]
[1758637375652,0.3211,4185.5,4185.0,0.4372]
[1758637375841,0.3211,4185.5,4185.4,0.42976]
[1758637376150,0.3211,4185.5,4185.4,0.73716]
[1758637376351,0.3211,4185.5,4185.4,1.16376]
[1758637376654,0.5245,4185.5,4185.4,1.16376]
[1758637378352,0.95425,4185.5,4185.4,1.16376]
[1758637378647,0.95425,4185.5,4185.0,0.5224]
[1758637378648,0.5245,4185.1,4185.0,0.5224]
[1758637378855,0.5245,4185.5,4185.4,0.64476]
[1758637379048,0.5245,4185.5,4185.4,1.16376]
[1758637379243,0.3211,4185.8,4185.7,0.42973]
[1758637379453,1.06139221,4185.8,4185.7,0.734]
[1758637379652,1.49112221,4185.8,4185.7,0.734]
[1758637379848,0.5245,4185.8,4185.7,1.16373]
[1758637380155,0.7337,4185.8,4185.3,0.3074]
[1758637380355,0.7337,4185.8,4185.5,0.64474]
[1758637380356,0.7337,4185.6,4185.5,0.64474]
[1758637380541,0.7337,4185.6,4185.5,0.95214]
[1758637380747,0.7337,4185.6,4185.5,1.16374]
[1758637381052,1.16344,4185.6,4185.5,1.16375]
[1758637381357,0.7337,4185.1,4185.0,1.1638]
[1758637381551,0.4558,4185.5,4185.4,0.42976]
[1758637381758,0.8684,4185.5,4185.4,0.64476]
[1758637382154,0.7337,4185.5,4185.4,0.95216]
[1758637382553,1.16345,4185.5,4185.4,0.64476]
[1758637382750,0.7337,4185.5,4185.4,0.64476]
[1758637383056,0.3211,4186.3,4186.2,0.42968]
[1758637383357,0.3211,4186.7,4186.4,0.42965]
[1758637383553,0.96689965,4186.6,4186.5,0.73705]
[1758637383853,0.53725965,4186.6,4186.5,0.73705]
[1758637384059,0.85835965,4186.6,4186.5,0.73705]
[1758637384261,0.53725965,4186.6,4186.4,0.3074]
[1758637384454,0.53725965,4186.5,4186.4,0.73706]
[1758637384652,0.85835965,4186.5,4186.4,0.73706]
[1758637384859,0.3211,4186.4,4186.0,0.1307]
[1758637385364,0.3211,4186.2,4186.1,0.42969]
[1758637385658,0.3211,4186.1,4185.8,0.3074]
[1758637385856,0.3211,4186.1,4186.0,0.7371]
[1758637386161,0.1347,4186.5,4185.1,1.07448]
[1758637386162,0.3211,4186.4,4185.1,1.07448]
[1758637386458,0.3211,4185.6,4185.0,0.4381]
[1758637386851,0.75084,4185.6,4185.4,0.42976]
[1758637387045,0.75084,4185.6,4185.5,0.42975]
[1758637387263,0.3211,4185.5,4185.0,0.4381]
[1758637387449,0.75084,4185.6,4185.5,0.42975]
[1758637387649,0.42974,4185.6,4185.3,0.42976]
[1758637387849,0.42977,4185.3,4185.2,0.3074]
[1758637388161,0.42977,4185.3,4184.0,1.84132516]
[1758637388162,0.3211,4185.2,4185.1,0.73719]
[1758637388359,0.3211,4185.5,4185.4,0.73716]
[1758637388659,0.3211,4185.9,4185.4,0.73716]
[1758637388858,0.53726222,4185.8,4185.6,0.42974]
[1758637389162,0.85836222,4185.7,4185.6,0.73714]
[1758637389363,0.85836222,4185.7,4185.1,0.3074]
[1758637389552,0.85836222,4185.6,4185.1,0.3074]
[1758637389753,0.3211,4185.4,4185.1,0.42979]
[1758637389954,0.3211,4185.4,4185.3,0.73717]
[1758637390560,0.3211,4185.4,4185.3,0.3074]
[1758637391261,0.5245,4185.4,4185.3,0.5224]
[1758637391462,1.26852652,4185.4,4185.3,0.5224]
[1758637391857,0.4126,4185.0,4184.9,0.63271]
[1758637392050,0.7196,4185.0,4184.9,0.2029]
[1758637392256,0.7196,4185.0,4184.9,0.5163]
[1758637392455,1.38868702,4185.0,4184.9,0.2029]
[1758637393162,0.42984,4184.6,4184.5,0.3134]
[1758637393360,0.42984,4184.6,4184.0,0.1307]
[1758637393361,0.42986,4184.5,4184.4,0.7268]
[1758637393665,0.2065,4184.5,4184.4,0.7268]
[1758637393963,0.5135,4184.8,4184.7,0.5163]
[1758637394466,0.7196,4184.8,4184.7,0.5163]
[1758637394854,0.7196,4185.1,4185.0,0.9461]
[1758637395052,1.05719861,4185.1,4185.0,1.1566]
[1758637395258,0.54369861,4185.1,4185.0,1.2911]
[1758637395559,0.307,4186.0,4185.3,1.07442]
[1758637395860,0.307,4186.4,4186.3,0.74307]
[1758637396072,0.5437965,4186.4,4186.3,0.74307]
[1758637396368,0.5437965,4186.4,4186.3,0.3134]
[1758637396369,0.8507965,4186.4,4186.3,0.3134]
[1758637396571,1.2804665,4186.4,4186.2,0.42968]
[1758637396771,0.8507965,4186.3,4186.2,0.42968]
[1758637396973,0.5437965,4186.3,4186.2,0.44417506]
[1758637397178,0.54376082,4186.3,4186.2,0.44417506]
[1758637397471,0.54376082,4186.3,4186.2,0.75757506]
[1758637397663,0.307,4186.6,4186.5,0.42965]
[1758637397863,0.42962,4186.8,4186.6,0.74304]
[1758637397864,0.54371782,4186.7,4186.6,0.74304]
[1758637398067,0.54371938,4186.7,4186.6,0.75753506]
[1758637398264,0.85071938,4186.7,4186.6,0.75753506]
[1758637399372,0.54371938,4186.7,4186.6,0.75753506]
[1758637399576,0.307,4187.1,4187.0,0.743]
[1758637399777,0.54367823,4187.2,4187.0,0.743]
[1758637399973,0.307,4187.4,4187.0,0.1345]
[1758637400181,0.307,4187.2,4187.1,0.44407506]
[1758637400473,0.8507211,4187.2,4187.1,0.44407506]
[1758637400668,0.8507211,4187.2,4187.1,0.01449506]
[1758637400974,0.8507211,4187.2,4186.0,0.3134]
[1758637400975,0.1311,4186.5,4186.0,0.3134]
[1758637401575,0.307,4186.4,4186.2,0.74308]
[1758637401775,0.307,4186.4,4186.3,0.42966]
[1758637402073,0.307,4186.4,4186.2,0.42968]
[1758637402272,0.1311,4186.5,4186.0,0.3134]
[1758637402466,0.307,4186.4,4186.3,0.74307]
[1758637403778,0.307,4186.4,4186.3,0.3134]
[1758637403972,0.5135,4186.4,4186.3,0.5163]
[1758637404174,0.5135,4186.4,4186.3,0.7332]
[1758637404871,0.7282,4186.4,4186.3,0.7332]
[1758637405066,0.2147,4185.9,4185.8,0.2229]
[1758637405268,0.42975,4185.6,4185.4,0.42976]
[1758637405477,0.125,4186.0,4185.5,0.42975]
[1758637405478,0.42973,4185.7,4185.5,0.42975]
[1758637405666,1.82953555,4187.5,4185.6,10.91694]
[1758637405868,0.125,4188.0,4187.2,0.1735]
[1758637406177,0.54440555,4187.9,4187.2,0.1735]
[1758637406374,0.125,4187.5,4187.4,0.42956]
[1758637406573,0.4369,4187.5,4187.4,0.42956]
[1758637408374,0.4369,4188.0,4187.9,0.42951]
[1758637409390,0.125,4188.0,4187.4,0.1735]
[1758637409578,0.3119,4187.9,4187.8,0.42952]
[1758637411275,0.7396,4187.9,4187.8,0.65242]
[1758637411774,0.7396,4187.9,4187.8,0.86932]
[1758637411981,0.125,4188.5,4188.4,0.65235]
[1758637411982,0.8646,4188.5,4188.4,0.65235]
[1758637412284,0.4369,4188.5,4188.4,0.86925]
[1758637412582,0.8646,4188.5,4188.4,0.86925]
[1758637412773,0.8646,4188.5,4187.7,0.1735]
[1758637412970,0.5527,4188.5,4188.4,0.2229]
[1758637413584,0.7396,4188.3,4188.2,0.65237]
[1758637414386,0.5249,4188.3,4188.2,0.86927]
[1758637414583,0.3119,4188.3,4188.2,1.04277]
[1758637414787,0.3119,4188.3,4188.2,0.86927]
[1758637415179,0.5249,4188.3,4188.2,0.86927]
[1758637416875,0.7396,4188.3,4188.2,0.86927]
[1758637417282,0.7396,4188.3,4187.3,1.24742]
[1758637417586,1.19863,4188.5,4187.6,0.42953]
[1758637417587,0.4277,4187.7,4187.6,0.42953]
[1758637417895,0.7396,4187.7,4187.6,0.65243]
[1758637418976,0.7396,4187.7,4187.6,0.2229]
[1758637419188,1.16913,4187.7,4187.1,1.07398]
[1758637419383,0.85723,4187.7,4187.6,0.42954]
[1758637419684,0.4277,4187.7,4187.6,0.42954]
[1758637419985,0.8646,4187.5,4187.4,0.65245]
[1758637420181,0.3119,4187.4,4186.8,1.24753]
[1758637420489,0.5249,4187.1,4187.0,0.4398]
[1758637420688,0.5527,4187.5,4187.4,0.65246]
[1758637421182,0.9822,4188.0,4187.9,0.65241]
[1758637421382,0.9822,4188.0,4187.9,0.2229]
[1758637421687,0.9822,4188.0,4187.5,0.3275]
[1758637421688,0.42953,4187.7,4187.6,0.65243]
[1758637421891,0.4277,4187.7,4187.6,0.65244]
[1758637422180,0.42588698,4187.7,4187.6,1.19684]
[1758637422575,0.73778698,4187.7,4187.6,1.19684]
[1758637423387,1.16731698,4187.7,4187.6,0.4398]
[1758637423580,1.16731698,4187.7,4187.6,0.7673]
[1758637423778,0.7396,4187.2,4187.1,0.86939]
[1758637423983,0.7396,4187.2,4187.1,1.19689]
[1758637424386,0.213,4187.2,4187.1,1.19689]
[1758637424698,0.7396,4187.2,4187.1,0.2229]
[1758637424902,0.4277,4187.0,4186.9,0.6525]
[1758637425190,0.8646,4187.0,4186.9,0.6525]
[1758637425483,1.2942,4187.0,4186.9,0.2229]
[1758637425874,1.2942,4187.0,4186.9,0.65251]
[1758637426079,0.8646,4187.0,4186.9,0.65251]
[1758637426679,0.213,4186.7,4186.6,0.5504]
[1758637426889,0.7396,4186.7,4186.6,0.5504]
[1758637427089,0.7396,4186.7,4186.6,1.19694]
[1758637427483,0.7396,4186.7,4186.6,0.4398]
[1758637427679,1.16923,4186.7,4186.6,0.2229]
[1758637428189,0.4277,4186.6,4186.5,0.65255]
[1758637428691,0.4277,4186.6,4186.5,1.19695]
[1758637428893,0.213,4187.3,4187.2,1.19688]
[1758637429782,0.5249,4187.7,4187.6,0.86934]
[1758637429981,0.213,4187.7,4187.6,1.19684]
[1758637430178,1.16909,4188.0,4187.9,0.2229]
[1758637430382,1.7132057,4188.0,4187.9,0.65241]
[1758637430591,1.2837157,4188.0,4187.9,1.19681]
[1758637430895,1.7132157,4188.0,4187.9,0.7673]
[1758637431387,0.5249,4187.2,4187.1,0.7673]
[1758637431588,0.213,4187.5,4187.4,0.4398]
[1758637431787,0.5249,4187.5,4187.4,0.7673]
[1758637431987,0.42957,4187.3,4187.2,0.42957]
[1758637432182,0.7396,4187.1,4187.0,1.19689]
[1758637432785,1.29415,4187.5,4187.4,0.5504]
[1758637432988,0.324,4187.4,4186.9,0.2121]
[1758637433289,0.54456331,4187.3,4187.0,0.42959]
[1758637433494,0.97484,4187.6,4187.5,0.4356]
[1758637433792,1.72660449,4187.6,4187.5,0.4356]
[1758637433996,1.72660449,4187.6,4187.5,0.2121]
[1758637434294,0.2213,4187.3,4187.2,0.94608]
[1758637434588,0.324,4188.1,4187.7,0.3044]
[1758637434790,1.19863,4188.5,4187.1,1.07396]
[1758637434791,1.18197,4188.2,4188.1,0.94598]
[1758637434997,1.72664991,4188.2,4188.1,1.16948]
[1758637436093,1.72664991,4188.2,4188.1,0.4356]
[1758637436889,1.29717991,4188.2,4188.1,0.64158]
[1758637437089,1.72664991,4188.2,4188.1,0.42948]
[1758637437281,1.29717991,4188.2,4188.1,0.42948]
[1758637437485,1.29717991,4188.2,4187.7,0.3044]
[1758637437683,1.30519,4188.0,4187.9,0.2121]
[1758637437888,1.30519,4188.0,4187.1,1.07398]
[1758637437889,0.324,4187.4,4187.1,1.07398]
[1758637438096,0.2213,4187.4,4187.3,1.16957]
[1758637438293,0.5453,4187.4,4187.3,1.16957]
[1758637439294,0.2213,4187.4,4187.3,1.16957]
[1758637439898,0.5453,4187.4,4187.3,1.16957]
[1758637440193,0.7525,4187.4,4187.3,0.4356]
[1758637440392,0.324,4187.1,4187.0,0.6417]
[1758637440592,0.7525,4187.1,4187.0,0.9461]